[Event "Titled Tuesday Blitz April 11 Early 2023"]
[White "Avazkhonov, Alikhon"]
[Black "Darini, Pouria"]
[WhiteFideId "14208504"]
[BlackFideId "12502200"]
[WhiteElo "1739"]
[BlackElo "2482"]
[Result "0-1"]
[Round "04"]
[TimeControl "180+2"]
[Date "2023.04.11"]
[WhiteClock "0:00:25"]
[BlackClock "0:01:43"]

1. e4 {[%clk 0:03:00]}  c5 {[%clk 0:03:00]} 2. Nc3 {[%clk 0:03:00]}  Nc6 {[%clk 0:03:00]} 3. g3 {[%clk 0:03:00]}  g6 {[%clk 0:03:00]} 4. Bg2 {[%clk 0:03:00]}  Bg7 {[%clk 0:03:01]} 5. d3 {[%clk 0:03:00]}  Rb8 {[%clk 0:03:01]} 6. f4 {[%clk 0:02:27]}  b5 {[%clk 0:03:01]} 7. Nf3 {[%clk 0:02:28]}  b4 {[%clk 0:03:01]} 8. Ne2 {[%clk 0:02:27]}  e6 {[%clk 0:02:57]} 9. O-O {[%clk 0:02:28]}  Nge7 {[%clk 0:02:58]} 10. c3 {[%clk 0:02:27]}  O-O {[%clk 0:02:52]} 11. Be3 {[%clk 0:02:23]}  d6 {[%clk 0:02:44]} 12. d4 {[%clk 0:02:23]}  Ba6 {[%clk 0:02:39]} 13. Re1 {[%clk 0:02:20]}  bxc3 {[%clk 0:02:38]} 14. bxc3 {[%clk 0:02:17]}  cxd4 {[%clk 0:02:37]} 15. Nexd4 {[%clk 0:02:13]}  Qc7 {[%clk 0:02:35]} 16. Nxc6 {[%clk 0:02:04]}  Nxc6 {[%clk 0:02:31]} 17. Nd4 {[%clk 0:01:56]}  Na5 {[%clk 0:02:28]} 18. Rc1 {[%clk 0:01:25]}  Rb2 {[%clk 0:02:28]} 19. Rc2 {[%clk 0:01:25]}  Rxc2 {[%clk 0:02:28]} 20. Qxc2 {[%clk 0:01:26]}  Rc8 {[%clk 0:02:28]} 21. Rc1 {[%clk 0:01:25]}  Nc4 {[%clk 0:02:27]} 22. Bf2 {[%clk 0:01:25]}  e5 {[%clk 0:02:27]} 23. fxe5 {[%clk 0:01:20]}  Nxe5 {[%clk 0:02:24]} 24. Qa4 {[%clk 0:00:49]}  Bc4 {[%clk 0:01:52]} 25. Nb5 {[%clk 0:00:46]}  Qc6 {[%clk 0:01:48]} 26. Bf1 {[%clk 0:00:25]}  a6 {[%clk 0:01:43]} 0-1


[Site "https://www.chess.com"]

[Event "Titled Tuesday Blitz April 11 Early 2023"]
[White "Marcziter, Dmitrii"]
[Black "Danielyan, Vahe"]
[WhiteFideId "13900765"]
[BlackFideId "13304828"]
[WhiteElo "2162"]
[BlackElo "2423"]
[Result "1-0"]
[Round "04"]
[TimeControl "180+2"]
[Date "2023.04.11"]
[WhiteClock "0:00:25"]
[BlackClock "0:00:03"]

1. d4 {[%clk 0:03:00]}  Nf6 {[%clk 0:02:59]} 2. c4 {[%clk 0:03:00]}  g6 {[%clk 0:02:53]} 3. Nf3 {[%clk 0:02:59]}  Bg7 {[%clk 0:02:52]} 4. g3 {[%clk 0:03:00]}  b6 {[%clk 0:02:50]} 5. Bg2 {[%clk 0:03:00]}  Bb7 {[%clk 0:02:51]} 6. O-O {[%clk 0:02:58]}  O-O {[%clk 0:02:52]} 7. Nc3 {[%clk 0:02:57]}  Ne4 {[%clk 0:02:51]} 8. Nxe4 {[%clk 0:02:54]}  Bxe4 {[%clk 0:02:52]} 9. b3 {[%clk 0:02:51]}  c5 {[%clk 0:02:50]} 10. Bb2 {[%clk 0:02:51]}  Nc6 {[%clk 0:02:49]} 11. e3 {[%clk 0:02:48]}  d5 {[%clk 0:02:47]} 12. Ne5 {[%clk 0:02:35]}  Nxe5 {[%clk 0:02:35]} 13. Bxe4 {[%clk 0:02:29]}  Nxc4 {[%clk 0:02:31]} 14. bxc4 {[%clk 0:02:25]}  dxe4 {[%clk 0:02:31]} 15. Qd2 {[%clk 0:02:16]}  cxd4 {[%clk 0:02:27]} 16. exd4 {[%clk 0:02:15]}  Rc8 {[%clk 0:02:28]} 17. Rac1 {[%clk 0:02:14]}  Qd7 {[%clk 0:02:13]} 18. Rfe1 {[%clk 0:02:13]}  f5 {[%clk 0:02:07]} 19. d5 {[%clk 0:02:12]}  e5 {[%clk 0:01:58]} 20. f3 {[%clk 0:02:07]}  exf3 {[%clk 0:01:21]} 21. Bxe5 {[%clk 0:02:06]}  Rfe8 {[%clk 0:01:18]} 22. Qd4 {[%clk 0:01:59]}  Bf8 {[%clk 0:00:46]} 23. d6 {[%clk 0:01:51]}  Rxe5 {[%clk 0:00:45]} 24. Qxe5 {[%clk 0:01:43]}  Qxd6 {[%clk 0:00:37]} 25. Qxd6 {[%clk 0:01:40]}  Bxd6 {[%clk 0:00:38]} 26. Kf2 {[%clk 0:01:40]}  Ba3 {[%clk 0:00:34]} 27. Rc2 {[%clk 0:01:36]}  Bc5+ {[%clk 0:00:33]} 28. Kxf3 {[%clk 0:01:36]}  Rd8 {[%clk 0:00:33]} 29. Rce2 {[%clk 0:01:27]}  Kf7 {[%clk 0:00:33]} 30. h4 {[%clk 0:01:25]}  Rd3+ {[%clk 0:00:32]} 31. Kg2 {[%clk 0:01:22]}  Rc3 {[%clk 0:00:29]} 32. Rd2 {[%clk 0:01:18]}  Rxc4 {[%clk 0:00:19]} 33. Rd7+ {[%clk 0:01:17]}  Kf6 {[%clk 0:00:20]} 34. Rxa7 {[%clk 0:01:13]}  Rc2+ {[%clk 0:00:18]} 35. Kh1 {[%clk 0:01:07]}  Rc3 {[%clk 0:00:17]} 36. Kg2 {[%clk 0:01:01]}  Rc2+ {[%clk 0:00:17]} 37. Kh3 {[%clk 0:00:59]}  Rc3 {[%clk 0:00:16]} 38. Rf1 {[%clk 0:00:48]}  Bd6 {[%clk 0:00:15]} 39. Rg1 {[%clk 0:00:45]}  f4 {[%clk 0:00:15]} 40. Rxh7 {[%clk 0:00:44]}  fxg3 {[%clk 0:00:14]} 41. Rf1+ {[%clk 0:00:42]}  Ke6 {[%clk 0:00:15]} 42. Rg7 {[%clk 0:00:40]}  Rc2 {[%clk 0:00:11]} 43. Rxg6+ {[%clk 0:00:40]}  Ke7 {[%clk 0:00:11]} 44. Re1+ {[%clk 0:00:38]}  Kd7 {[%clk 0:00:11]} 45. Rd1 {[%clk 0:00:37]}  Rh2+ {[%clk 0:00:05]} 46. Kg4 {[%clk 0:00:37]}  g2 {[%clk 0:00:05]} 47. Rgxd6+ {[%clk 0:00:35]}  Ke7 {[%clk 0:00:05]} 48. Kg3 {[%clk 0:00:28]}  Rh1 {[%clk 0:00:04]} 49. Kxg2 {[%clk 0:00:28]}  Rxh4 {[%clk 0:00:03]} 50. R6d4 {[%clk 0:00:28]}  Rh6 {[%clk 0:00:03]} 51. Re1+ {[%clk 0:00:27]}  Kf7 {[%clk 0:00:03]} 52. Rf4+ {[%clk 0:00:27]}  Kg6 {[%clk 0:00:03]} 53. Re3 {[%clk 0:00:27]}  Kg5 {[%clk 0:00:03]} 54. Rf1 {[%clk 0:00:26]}  Rc6 {[%clk 0:00:03]} 55. Rg3+ {[%clk 0:00:25]} 1-0


[Site "https://www.chess.com"]

[Event "Titled Tuesday Blitz April 11 Early 2023"]
[White "Zarubitski, Viachaslau"]
[Black "Liew, Chee-Meng Jimmy"]
[WhiteFideId "13509373"]
[BlackFideId "5700019"]
[WhiteElo "2284"]
[BlackElo "2245"]
[Result "1-0"]
[Round "04"]
[TimeControl "180+2"]
[Date "2023.04.11"]
[WhiteClock "0:01:46"]
[BlackClock "0:01:45"]

1. e4 {[%clk 0:03:00]}  e6 {[%clk 0:03:00]} 2. d3 {[%clk 0:03:00]}  d5 {[%clk 0:03:00]} 3. Nd2 {[%clk 0:03:00]}  c5 {[%clk 0:02:59]} 4. Ngf3 {[%clk 0:03:01]}  Nc6 {[%clk 0:02:59]} 5. g3 {[%clk 0:03:01]}  Nf6 {[%clk 0:02:58]} 6. Bg2 {[%clk 0:03:02]}  Be7 {[%clk 0:02:58]} 7. O-O {[%clk 0:03:01]}  O-O {[%clk 0:02:58]} 8. Re1 {[%clk 0:02:59]}  b5 {[%clk 0:02:56]} 9. e5 {[%clk 0:02:57]}  Nd7 {[%clk 0:02:56]} 10. Nf1 {[%clk 0:02:45]}  a5 {[%clk 0:02:51]} 11. h4 {[%clk 0:02:43]}  Ba6 {[%clk 0:02:50]} 12. Bf4 {[%clk 0:02:40]}  b4 {[%clk 0:02:49]} 13. h5 {[%clk 0:02:38]}  h6 {[%clk 0:02:47]} 14. N1h2 {[%clk 0:02:38]}  Qb6 {[%clk 0:02:42]} 15. Qd2 {[%clk 0:02:35]}  Rfc8 {[%clk 0:02:40]} 16. Bxh6 {[%clk 0:02:32]}  gxh6 {[%clk 0:02:39]} 17. Qxh6 {[%clk 0:02:33]}  Qd8 {[%clk 0:02:36]} 18. Ng4 {[%clk 0:02:30]}  Qf8 {[%clk 0:02:34]} 19. Qf4 {[%clk 0:02:29]}  Nd4 {[%clk 0:02:27]} 20. Nh6+ {[%clk 0:02:11]}  Kg7 {[%clk 0:02:26]} 21. Ng5 {[%clk 0:02:10]}  f6 {[%clk 0:01:47]} 22. Nxe6+ {[%clk 0:01:46]}  Nxe6 {[%clk 0:01:46]} 23. Qg4+ {[%clk 0:01:46]}  Kxh6 {[%clk 0:01:45]} 24. Qg6# {[%clk 0:01:46]} 1-0


[Site "https://www.chess.com"]

[Event "Titled Tuesday Blitz April 11 Early 2023"]
[White "Williams, Simon K"]
[Black "Arat, Ufuk Sezen"]
[WhiteFideId "404454"]
[BlackFideId "6309089"]
[WhiteElo "2468"]
[BlackElo "2289"]
[Result "0-1"]
[Round "04"]
[TimeControl "180+2"]
[Date "2023.04.11"]
[WhiteClock "0:00:01"]
[BlackClock "0:00:21"]

1. d4 {[%clk 0:03:00]}  Nf6 {[%clk 0:02:59]} 2. Bg5 {[%clk 0:02:58]}  Ne4 {[%clk 0:02:58]} 3. h4 {[%clk 0:02:58]}  c5 {[%clk 0:02:58]} 4. d5 {[%clk 0:02:58]}  Qb6 {[%clk 0:02:57]} 5. Nd2 {[%clk 0:02:57]}  Nxg5 {[%clk 0:02:48]} 6. hxg5 {[%clk 0:02:57]}  Qxb2 {[%clk 0:02:47]} 7. g6 {[%clk 0:02:51]}  fxg6 {[%clk 0:02:45]} 8. e3 {[%clk 0:02:49]}  Na6 {[%clk 0:02:37]} 9. Bd3 {[%clk 0:02:48]}  Nb4 {[%clk 0:02:32]} 10. Be4 {[%clk 0:02:32]}  Qf6 {[%clk 0:02:30]} 11. a3 {[%clk 0:02:20]}  Na6 {[%clk 0:02:30]} 12. Ne2 {[%clk 0:02:14]}  d6 {[%clk 0:02:18]} 13. Nf4 {[%clk 0:02:12]}  g5 {[%clk 0:02:11]} 14. Ng6 {[%clk 0:01:54]}  Rg8 {[%clk 0:02:05]} 15. Rxh7 {[%clk 0:01:53]}  Bf5 {[%clk 0:02:04]} 16. Bxf5 {[%clk 0:01:07]}  Qxf5 {[%clk 0:02:03]} 17. Nxf8 {[%clk 0:00:47]}  Rxf8 {[%clk 0:02:01]} 18. Qh5+ {[%clk 0:00:46]}  g6 {[%clk 0:01:39]} 19. Qe2 {[%clk 0:00:45]}  Qxd5 {[%clk 0:01:39]} 20. Rb1 {[%clk 0:00:39]}  Nc7 {[%clk 0:01:21]} 21. e4 {[%clk 0:00:39]}  Qc6 {[%clk 0:01:20]} 22. e5 {[%clk 0:00:39]}  dxe5 {[%clk 0:01:08]} 23. Qxe5 {[%clk 0:00:33]}  O-O-O {[%clk 0:01:08]} 24. Rxe7 {[%clk 0:00:28]}  Rfe8 {[%clk 0:01:04]} 25. Kd1 {[%clk 0:00:11]}  Rxe7 {[%clk 0:01:01]} 26. Qxe7 {[%clk 0:00:12]}  Qxg2 {[%clk 0:00:50]} 27. c3 {[%clk 0:00:07]}  Qxf2 {[%clk 0:00:47]} 28. Qe2 {[%clk 0:00:07]}  Qf5 {[%clk 0:00:38]} 29. Kc1 {[%clk 0:00:05]}  Re8 {[%clk 0:00:37]} 30. Qd1 {[%clk 0:00:03]}  Nd5 {[%clk 0:00:30]} 31. Qh1 {[%clk 0:00:02]}  Qe5 {[%clk 0:00:21]} 32. Rb5 {[%clk 0:00:01]}  Qxc3+ {[%clk 0:00:21]} 33. Kb1 {[%clk 0:00:01]}  Qd3+ {[%clk 0:00:21]} 0-1


[Site "https://www.chess.com"]

[Event "Titled Tuesday Blitz April 11 Early 2023"]
[White "Piesik, Piotr"]
[Black "Novikova, Galina"]
[WhiteFideId "1136194"]
[BlackFideId "4157095"]
[WhiteElo "2299"]
[BlackElo "1953"]
[Result "1-0"]
[Round "04"]
[TimeControl "180+2"]
[Date "2023.04.11"]
[WhiteClock "0:02:34"]
[BlackClock "0:01:07"]

1. Nf3 {[%clk 0:03:00]}  e6 {[%clk 0:03:00]} 2. g3 {[%clk 0:03:01]}  f5 {[%clk 0:02:58]} 3. Bg2 {[%clk 0:03:02]}  Nf6 {[%clk 0:02:56]} 4. O-O {[%clk 0:03:03]}  Be7 {[%clk 0:02:52]} 5. d4 {[%clk 0:03:02]}  d6 {[%clk 0:02:52]} 6. Nbd2 {[%clk 0:03:01]}  O-O {[%clk 0:02:52]} 7. c3 {[%clk 0:03:01]}  Nc6 {[%clk 0:02:47]} 8. Qc2 {[%clk 0:03:01]}  e5 {[%clk 0:02:45]} 9. e4 {[%clk 0:02:59]}  fxe4 {[%clk 0:02:35]} 10. Nxe4 {[%clk 0:02:58]}  Nxe4 {[%clk 0:02:20]} 11. Qxe4 {[%clk 0:02:59]}  exd4 {[%clk 0:02:08]} 12. Nxd4 {[%clk 0:02:59]}  Nxd4 {[%clk 0:02:07]} 13. Qxd4 {[%clk 0:03:00]}  Bf6 {[%clk 0:02:04]} 14. Qc4+ {[%clk 0:02:56]}  Kh8 {[%clk 0:02:05]} 15. Be3 {[%clk 0:02:56]}  c6 {[%clk 0:02:02]} 16. Rad1 {[%clk 0:02:54]}  d5 {[%clk 0:02:01]} 17. Qb3 {[%clk 0:02:53]}  Bg4 {[%clk 0:01:42]} 18. Rd2 {[%clk 0:02:53]}  Qc8 {[%clk 0:01:41]} 19. Bd4 {[%clk 0:02:47]}  Bxd4 {[%clk 0:01:39]} 20. Rxd4 {[%clk 0:02:48]}  Rb8 {[%clk 0:01:11]} 21. Qa4 {[%clk 0:02:39]}  a6 {[%clk 0:01:10]} 22. Rxg4 {[%clk 0:02:36]}  b5 {[%clk 0:01:07]} 23. Qd4 {[%clk 0:02:34]}  c5 {[%clk 0:01:07]} 24. Qxg7# {[%clk 0:02:34]} 1-0


[Site "https://www.chess.com"]

[Event "Titled Tuesday Blitz April 11 Early 2023"]
[White "Biriukov, Ilja"]
[Black "Leiva, Gianmarco"]
[WhiteFideId "4113373"]
[BlackFideId "3804399"]
[WhiteElo "2426"]
[BlackElo "2345"]
[Result "0-1"]
[Round "04"]
[TimeControl "180+2"]
[Date "2023.04.11"]
[WhiteClock "0:00:02"]
[BlackClock "0:00:49"]

1. d4 {[%clk 0:03:00]}  Nf6 {[%clk 0:02:46]} 2. Nc3 {[%clk 0:02:59]}  d5 {[%clk 0:02:46]} 3. Bf4 {[%clk 0:02:58]}  c5 {[%clk 0:02:47]} 4. e3 {[%clk 0:02:58]}  cxd4 {[%clk 0:02:27]} 5. exd4 {[%clk 0:02:58]}  Bg4 {[%clk 0:02:23]} 6. f3 {[%clk 0:02:56]}  Bd7 {[%clk 0:02:14]} 7. Nb5 {[%clk 0:02:40]}  Qa5+ {[%clk 0:02:08]} 8. Nc3 {[%clk 0:02:33]}  e6 {[%clk 0:02:03]} 9. a3 {[%clk 0:02:31]}  Qb6 {[%clk 0:01:53]} 10. Rb1 {[%clk 0:02:20]}  Bd6 {[%clk 0:01:47]} 11. Nh3 {[%clk 0:02:15]}  O-O {[%clk 0:01:41]} 12. Be2 {[%clk 0:02:06]}  Bxf4 {[%clk 0:01:39]} 13. Nxf4 {[%clk 0:02:07]}  Nc6 {[%clk 0:01:40]} 14. Bb5 {[%clk 0:01:17]}  Nxd4 {[%clk 0:01:35]} 15. Bxd7 {[%clk 0:01:15]}  Nxd7 {[%clk 0:01:36]} 16. Na4 {[%clk 0:01:12]}  Qa5+ {[%clk 0:01:35]} 17. c3 {[%clk 0:01:12]}  Nf5 {[%clk 0:01:31]} 18. b4 {[%clk 0:00:59]}  Qc7 {[%clk 0:01:32]} 19. Qd2 {[%clk 0:00:48]}  Ne5 {[%clk 0:01:28]} 20. Nb2 {[%clk 0:00:45]}  a5 {[%clk 0:01:09]} 21. O-O {[%clk 0:00:44]}  axb4 {[%clk 0:01:09]} 22. axb4 {[%clk 0:00:40]}  Ra2 {[%clk 0:01:09]} 23. Nfd3 {[%clk 0:00:27]}  Nc4 {[%clk 0:00:54]} 24. Qc1 {[%clk 0:00:21]}  Rc8 {[%clk 0:00:54]} 25. Nxc4 {[%clk 0:00:19]}  Qxc4 {[%clk 0:00:54]} 26. Nc5 {[%clk 0:00:14]}  Qe2 {[%clk 0:00:48]} 27. Qg5 {[%clk 0:00:02]}  h6 {[%clk 0:00:49]} 28. Qg4 {[%clk 0:00:02]}  Ne3 {[%clk 0:00:49]} 0-1


[Site "https://www.chess.com"]

[Event "Titled Tuesday Blitz April 11 Early 2023"]
[White "La Villa Rivas, Marlon Javier"]
[Black "Kucuksari, Kaan"]
[WhiteFideId "3519546"]
[BlackFideId "6380166"]
[WhiteElo "2135"]
[BlackElo "2364"]
[Result "1-0"]
[Round "04"]
[TimeControl "180+2"]
[Date "2023.04.11"]
[WhiteClock "0:00:15"]
[BlackClock "0:00:02"]

1. e4 {[%clk 0:03:00]}  e5 {[%clk 0:03:00]} 2. Nf3 {[%clk 0:03:00]}  Nc6 {[%clk 0:03:00]} 3. Bb5 {[%clk 0:02:59]}  a6 {[%clk 0:03:00]} 4. Ba4 {[%clk 0:02:59]}  Nf6 {[%clk 0:02:59]} 5. d3 {[%clk 0:02:59]}  Be7 {[%clk 0:02:56]} 6. Bxc6 {[%clk 0:02:56]}  dxc6 {[%clk 0:02:56]} 7. Nxe5 {[%clk 0:02:56]}  O-O {[%clk 0:02:56]} 8. O-O {[%clk 0:02:55]}  Re8 {[%clk 0:02:54]} 9. Nc3 {[%clk 0:02:51]}  Be6 {[%clk 0:02:46]} 10. h3 {[%clk 0:02:51]}  Qc8 {[%clk 0:02:44]} 11. f4 {[%clk 0:02:47]}  Rd8 {[%clk 0:02:35]} 12. Qf3 {[%clk 0:02:45]}  Bd7 {[%clk 0:02:28]} 13. Be3 {[%clk 0:02:42]}  Be8 {[%clk 0:02:28]} 14. Ng4 {[%clk 0:02:33]}  Nxg4 {[%clk 0:02:24]} 15. hxg4 {[%clk 0:02:34]}  c5 {[%clk 0:02:22]} 16. f5 {[%clk 0:02:30]}  Bc6 {[%clk 0:02:07]} 17. g5 {[%clk 0:02:29]}  Bf8 {[%clk 0:02:07]} 18. g6 {[%clk 0:02:26]}  f6 {[%clk 0:02:03]} 19. gxh7+ {[%clk 0:02:19]}  Kh8 {[%clk 0:02:03]} 20. Ne2 {[%clk 0:02:13]}  Bd6 {[%clk 0:01:57]} 21. Bf4 {[%clk 0:02:12]}  c4 {[%clk 0:01:35]} 22. Bxd6 {[%clk 0:02:09]}  Rxd6 {[%clk 0:01:27]} 23. Nf4 {[%clk 0:02:09]}  Be8 {[%clk 0:01:15]} 24. dxc4 {[%clk 0:02:06]}  Bf7 {[%clk 0:01:14]} 25. b3 {[%clk 0:02:04]}  Qe8 {[%clk 0:01:13]} 26. Rad1 {[%clk 0:02:02]}  Rad8 {[%clk 0:01:13]} 27. Rxd6 {[%clk 0:01:57]}  Rxd6 {[%clk 0:01:14]} 28. Qg4 {[%clk 0:01:52]}  Kxh7 {[%clk 0:00:54]} 29. Rf3 {[%clk 0:01:46]}  Kg8 {[%clk 0:00:42]} 30. Rh3 {[%clk 0:01:45]}  Qe5 {[%clk 0:00:35]} 31. c3 {[%clk 0:00:57]}  Rd7 {[%clk 0:00:16]} 32. Rg3 {[%clk 0:00:50]}  Be8 {[%clk 0:00:16]} 33. Ne6 {[%clk 0:00:49]}  g5 {[%clk 0:00:07]} 34. fxg6 {[%clk 0:00:37]}  Re7 {[%clk 0:00:06]} 35. Nf4 {[%clk 0:00:23]}  Qxe4 {[%clk 0:00:06]} 36. Qh4 {[%clk 0:00:19]}  Rd7 {[%clk 0:00:02]} 37. Qxf6 {[%clk 0:00:18]}  Rd1+ {[%clk 0:00:02]} 38. Kh2 {[%clk 0:00:18]}  Rd7 {[%clk 0:00:02]} 39. Rh3 {[%clk 0:00:17]}  Rg7 {[%clk 0:00:02]} 40. Ne6 {[%clk 0:00:15]} 1-0


[Site "https://www.chess.com"]

[Event "Titled Tuesday Blitz April 11 Early 2023"]
[White "ilya2700"]
[Black "Ambartsumova, Karina"]
[BlackFideId "4166299"]
[WhiteElo "2269"]
[BlackElo "2240"]
[Result "1-0"]
[Round "04"]
[TimeControl "180+2"]
[Date "2023.04.11"]
[WhiteClock "0:00:22"]
[BlackClock "0:00:03"]

1. d4 {[%clk 0:03:00]}  Nf6 {[%clk 0:02:59]} 2. c4 {[%clk 0:03:00]}  g6 {[%clk 0:02:59]} 3. Nc3 {[%clk 0:03:00]}  Bg7 {[%clk 0:02:59]} 4. e4 {[%clk 0:03:00]}  O-O {[%clk 0:02:59]} 5. f4 {[%clk 0:03:01]}  d6 {[%clk 0:02:55]} 6. Nf3 {[%clk 0:03:01]}  c5 {[%clk 0:02:55]} 7. d5 {[%clk 0:03:02]}  e6 {[%clk 0:02:56]} 8. Be2 {[%clk 0:03:01]}  exd5 {[%clk 0:02:56]} 9. cxd5 {[%clk 0:03:02]}  Re8 {[%clk 0:02:48]} 10. Nd2 {[%clk 0:03:02]}  a6 {[%clk 0:02:33]} 11. a4 {[%clk 0:03:01]}  Nbd7 {[%clk 0:02:29]} 12. O-O {[%clk 0:03:01]}  Rb8 {[%clk 0:02:29]} 13. Kh1 {[%clk 0:03:01]}  Qc7 {[%clk 0:02:19]} 14. Qb3 {[%clk 0:02:58]}  h5 {[%clk 0:02:05]} 15. h3 {[%clk 0:02:58]}  h4 {[%clk 0:01:59]} 16. Bf3 {[%clk 0:02:30]}  Nf8 {[%clk 0:01:31]} 17. Nc4 {[%clk 0:02:22]}  Bd7 {[%clk 0:01:09]} 18. e5 {[%clk 0:02:16]}  dxe5 {[%clk 0:01:03]} 19. d6 {[%clk 0:01:56]}  Qc8 {[%clk 0:01:01]} 20. fxe5 {[%clk 0:01:47]}  b5 {[%clk 0:00:45]} 21. axb5 {[%clk 0:01:39]}  axb5 {[%clk 0:00:44]} 22. exf6 {[%clk 0:01:32]}  bxc4 {[%clk 0:00:44]} 23. Qxc4 {[%clk 0:01:27]}  Rb4 {[%clk 0:00:25]} 24. Qa2 {[%clk 0:01:02]}  Be6 {[%clk 0:00:15]} 25. Nd5 {[%clk 0:00:50]}  Bh8 {[%clk 0:00:09]} 26. Qa7 {[%clk 0:00:38]}  Bxd5 {[%clk 0:00:06]} 27. Bxd5 {[%clk 0:00:39]}  Ne6 {[%clk 0:00:06]} 28. d7 {[%clk 0:00:36]}  Qd8 {[%clk 0:00:05]} 29. dxe8=Q+ {[%clk 0:00:35]}  Qxe8 {[%clk 0:00:06]} 30. Qe7 {[%clk 0:00:29]}  Rb8 {[%clk 0:00:02]} 31. Bxe6 {[%clk 0:00:24]}  Qxe7 {[%clk 0:00:02]} 32. fxe7 {[%clk 0:00:24]}  fxe6 {[%clk 0:00:03]} 33. Bh6 {[%clk 0:00:22]} 1-0


[Site "https://www.chess.com"]

[Event "Titled Tuesday Blitz April 11 Early 2023"]
[White "HSH1987"]
[Black "Devaev, Alexander"]
[BlackFideId "4169395"]
[WhiteElo "2686"]
[BlackElo "2204"]
[Result "0-1"]
[Round "04"]
[TimeControl "180+2"]
[Date "2023.04.11"]
[WhiteClock "0:00:16"]
[BlackClock "0:00:31"]

1. e4 {[%clk 0:03:00]}  c6 {[%clk 0:02:58]} 2. d4 {[%clk 0:02:59]}  d5 {[%clk 0:02:59]} 3. exd5 {[%clk 0:03:00]}  cxd5 {[%clk 0:02:59]} 4. c3 {[%clk 0:03:01]}  Nc6 {[%clk 0:02:58]} 5. Bd3 {[%clk 0:03:01]}  Qc7 {[%clk 0:02:59]} 6. Ne2 {[%clk 0:03:00]}  Bg4 {[%clk 0:02:55]} 7. f3 {[%clk 0:02:57]}  Bh5 {[%clk 0:02:53]} 8. Bf4 {[%clk 0:02:57]}  Qd7 {[%clk 0:02:46]} 9. Nd2 {[%clk 0:02:52]}  Bg6 {[%clk 0:02:47]} 10. Nb3 {[%clk 0:02:48]}  e6 {[%clk 0:02:46]} 11. O-O {[%clk 0:02:46]}  Nf6 {[%clk 0:02:36]} 12. a4 {[%clk 0:02:45]}  Be7 {[%clk 0:02:31]} 13. a5 {[%clk 0:02:44]}  O-O {[%clk 0:02:26]} 14. Bg3 {[%clk 0:02:33]}  Bxd3 {[%clk 0:02:10]} 15. Qxd3 {[%clk 0:02:31]}  Rac8 {[%clk 0:02:10]} 16. Nf4 {[%clk 0:02:26]}  Bd6 {[%clk 0:02:08]} 17. Rfe1 {[%clk 0:02:23]}  Rfe8 {[%clk 0:02:07]} 18. Qd2 {[%clk 0:02:16]}  Qc7 {[%clk 0:02:05]} 19. Ne2 {[%clk 0:02:11]}  e5 {[%clk 0:02:01]} 20. dxe5 {[%clk 0:02:08]}  Nxe5 {[%clk 0:02:00]} 21. Bxe5 {[%clk 0:01:59]}  Bxe5 {[%clk 0:01:58]} 22. g3 {[%clk 0:01:51]}  h5 {[%clk 0:01:53]} 23. Nbd4 {[%clk 0:01:49]}  h4 {[%clk 0:01:47]} 24. Kg2 {[%clk 0:01:48]}  Qd7 {[%clk 0:01:44]} 25. Rad1 {[%clk 0:01:41]}  Bc7 {[%clk 0:01:43]} 26. Qg5 {[%clk 0:01:35]}  h3+ {[%clk 0:01:29]} 27. Kh1 {[%clk 0:01:31]}  Nh7 {[%clk 0:01:29]} 28. Qd2 {[%clk 0:00:59]}  Bxa5 {[%clk 0:01:25]} 29. Nf4 {[%clk 0:00:58]}  Bc7 {[%clk 0:01:22]} 30. Nd3 {[%clk 0:00:51]}  Rxe1+ {[%clk 0:01:19]} 31. Rxe1 {[%clk 0:00:50]}  Re8 {[%clk 0:01:17]} 32. Nc5 {[%clk 0:00:48]}  Rxe1+ {[%clk 0:00:55]} 33. Qxe1 {[%clk 0:00:49]}  Qc8 {[%clk 0:00:55]} 34. Qe7 {[%clk 0:00:37]}  Nf6 {[%clk 0:00:51]} 35. Nb5 {[%clk 0:00:26]}  Bb6 {[%clk 0:00:41]} 36. Nd3 {[%clk 0:00:23]}  Qc4 {[%clk 0:00:39]} 37. Nd6 {[%clk 0:00:16]}  Qxd3 {[%clk 0:00:31]} 38. Qxf7+ {[%clk 0:00:16]}  Kh7 {[%clk 0:00:31]} 0-1


[Site "https://www.chess.com"]

[Event "Titled Tuesday Blitz April 11 Early 2023"]
[White "Skvortsov, Andrei"]
[Black "Khandelwal, Ankush"]
[WhiteFideId "24108600"]
[BlackFideId "413470"]
[WhiteElo "2259"]
[BlackElo "2263"]
[Result "1-0"]
[Round "04"]
[TimeControl "180+2"]
[Date "2023.04.11"]
[WhiteClock "0:02:12"]
[BlackClock "0:01:10"]

1. e4 {[%clk 0:02:58]}  c5 {[%clk 0:02:52]} 2. d4 {[%clk 0:02:51]}  cxd4 {[%clk 0:02:51]} 3. Qxd4 {[%clk 0:02:52]}  Nc6 {[%clk 0:02:44]} 4. Qd3 {[%clk 0:02:53]}  Nf6 {[%clk 0:02:42]} 5. Nc3 {[%clk 0:02:52]}  g6 {[%clk 0:02:38]} 6. Nf3 {[%clk 0:02:50]}  Bg7 {[%clk 0:02:31]} 7. Be2 {[%clk 0:02:48]}  O-O {[%clk 0:02:27]} 8. O-O {[%clk 0:02:48]}  d6 {[%clk 0:02:25]} 9. Nd5 {[%clk 0:02:45]}  Nd7 {[%clk 0:02:23]} 10. c3 {[%clk 0:02:43]}  e6 {[%clk 0:02:11]} 11. Ne3 {[%clk 0:02:42]}  Nc5 {[%clk 0:01:54]} 12. Qc2 {[%clk 0:02:42]}  b6 {[%clk 0:01:53]} 13. b4 {[%clk 0:02:39]}  Nxb4 {[%clk 0:01:53]} 14. cxb4 {[%clk 0:02:37]}  Bxa1 {[%clk 0:01:52]} 15. bxc5 {[%clk 0:02:34]}  dxc5 {[%clk 0:01:46]} 16. e5 {[%clk 0:02:27]}  Bb7 {[%clk 0:01:44]} 17. Ng4 {[%clk 0:02:22]}  h5 {[%clk 0:01:37]} 18. Nf6+ {[%clk 0:02:20]}  Kg7 {[%clk 0:01:37]} 19. Bg5 {[%clk 0:02:17]}  Bxe5 {[%clk 0:01:09]} 20. Nxh5+ {[%clk 0:02:11]}  gxh5 {[%clk 0:01:10]} 21. Bxd8 {[%clk 0:02:12]} 1-0


[Site "https://www.chess.com"]